bitfinex/quotes_BTCUSD_20260310
["timestamp","ask_amount","ask_price","bid_price","bid_amount"]
[1773116566174,0.1015966,69836.0,69816.0,0.00144]
[1773116566175,0.10171061,69836.0,69822.0,0.21713442]
[1773116566341,0.07159241,69840.0,69825.0,0.02032054]
[1773116566539,0.07197179,69840.0,69813.0,0.07161989]
[1773116566759,0.03,69834.0,69815.0,0.02032054]
[1773116566953,0.03,69830.0,69816.0,0.00144]
[1773116567176,0.03,69830.0,69811.0,0.07161989]
[1773116567177,0.03,69830.0,69803.0,0.00144]
[1773116567178,0.02079421,69821.0,69803.0,0.00144]
[1773116567383,0.23004074,69830.0,69803.0,0.00144]
[1773116567384,0.03,69818.0,69803.0,0.00144]
[1773116567650,0.03,69818.0,69800.0,0.00023]
[1773116567881,0.02100339,69811.0,69800.0,0.00167]
[1773116568083,0.03,69810.0,69800.0,0.00167]
[1773116568477,0.03,69810.0,69800.0,0.09362319]
[1773116568618,0.03,69810.0,69800.0,0.07341666]
[1773116568965,0.03,69814.0,69804.0,0.02032054]
[1773116569170,0.03,69814.0,69802.0,0.00144]
[1773116569363,0.03,69814.0,69801.0,0.02032054]
[1773116569364,0.03,69810.0,69801.0,0.00144]
[1773116569526,0.05100339,69810.0,69801.0,0.00144]
[1773116569723,0.03,69808.0,69801.0,0.00144]
[1773116569907,0.03,69808.0,69800.0,0.00034401]
[1773116570422,0.03,69808.0,69800.0,0.00178401]
[1773116571227,0.03,69808.0,69800.0,0.00034401]
[1773116571429,0.071624,69809.0,69786.0,0.07164712]
[1773116571430,0.03,69806.0,69786.0,0.07164712]
[1773116571654,0.03,69806.0,69789.0,0.07184405]
[1773116571655,0.05100339,69802.0,69789.0,0.07184405]
[1773116571852,0.03,69800.0,69789.0,0.07184405]
[1773116572279,0.03,69800.0,69790.0,0.00144]
[1773116572656,0.03,69800.0,69789.0,0.0002]
[1773116572871,0.03,69800.0,69793.0,0.0002]
[1773116573840,0.05013863,69798.0,69793.0,0.0002]
[1773116574289,0.03,69798.0,69793.0,0.0002]
[1773116576102,0.10163591,69798.0,69793.0,0.0002]
[1773116577701,0.07107458,69798.0,69793.0,0.0002]
[1773116577907,0.03,69799.0,69793.0,0.0002]
[1773116578108,0.1016344,69799.0,69793.0,0.0002]
[1773116584096,0.03,69797.0,69788.0,0.00562]
[1773116584300,0.03,69795.0,69788.0,0.00562]
[1773116584698,0.03,69795.0,69788.0,0.02603538]
[1773116584889,0.03,69793.0,69788.0,0.00562]
[1773116585136,0.03,69793.0,69789.0,0.02041538]
[1773116585306,0.03,69793.0,69789.0,0.02037538]
[1773116587601,0.10164049,69793.0,69789.0,0.02037538]
[1773116587750,0.03,69792.0,69789.0,0.02037538]
[1773116590152,0.03,69792.0,69788.0,0.00562]
[1773116590153,0.10164184,69792.0,69788.0,0.00562]
[1773116590367,0.10164184,69792.0,69789.0,0.0002]
[1773116591342,0.10164184,69792.0,69783.0,0.00144]
[1773116591544,0.03,69790.0,69782.0,0.0002]
[1773116591717,0.03144,69790.0,69782.0,0.0002]
[1773116591922,0.10164555,69788.0,69782.0,0.0002]
[1773116593923,0.10164555,69788.0,69779.0,0.0002]
[1773116593924,0.12154347,69788.0,69779.0,0.0002]
[1773116595722,0.01989792,69785.0,69766.0,0.17180129]
[1773116595919,0.03,69780.0,69769.0,0.00144]
[1773116596321,0.03,69780.0,69766.0,0.01872511]
[1773116596524,0.03,69780.0,69768.0,0.00144]
[1773116596935,0.03011363,69780.0,69768.0,0.00144]
[1773116597483,0.03011363,69780.0,69765.0,0.00144]
[1773116597484,0.03,69775.0,69765.0,0.00144]
[1773116597694,0.03,69775.0,69763.0,0.00015]
[1773116597964,0.03,69773.0,69763.0,0.00015]
[1773116598293,0.07309835,69776.0,69765.0,0.01872511]
[1773116598496,0.07309835,69776.0,69767.0,0.01872511]
[1773116598702,0.07309835,69776.0,69768.0,0.01872511]
[1773116598900,0.03,69775.0,69768.0,0.22576052]
[1773116599920,0.03,69773.0,69768.0,0.20703541]
[1773116600116,0.03,69773.0,69769.0,0.01872511]
[1773116600297,0.03,69773.0,69772.0,0.0002]
[1773116601128,0.03,69774.0,69772.0,0.0002]
[1773116602759,0.01965415,69789.0,69773.0,0.01872511]
[1773116602903,0.09123551,69798.0,69776.0,0.20703541]
[1773116603108,0.09123551,69798.0,69780.0,0.01872511]
[1773116603109,0.00144,69797.0,69780.0,0.01872511]
[1773116603314,0.07163529,69798.0,69784.0,0.01872511]
[1773116603562,0.07307529,69798.0,69787.0,0.20703541]
[1773116603715,0.07163529,69798.0,69788.0,0.01872511]
[1773116603927,0.07163529,69798.0,69789.0,0.01872511]
[1773116605676,0.07163529,69798.0,69785.0,0.00144]
[1773116606033,0.01950563,69797.0,69785.0,0.00144]
[1773116607738,0.07163734,69796.0,69785.0,0.00144]
[1773116608167,0.07163734,69796.0,69782.0,0.09037658]
[1773116608337,0.07163734,69796.0,69784.0,0.00144]
[1773116608923,0.01929047,69795.0,69778.0,0.17180129]
[1773116609133,0.01929047,69793.0,69775.0,0.01872511]
[1773116609350,0.01929047,69791.0,69778.0,0.00144]
[1773116609559,0.00144,69792.0,69772.0,0.3790367]
[1773116609560,0.2159833,69790.0,69772.0,0.0002]
[1773116609734,0.00144,69792.0,69772.0,0.0002]
[1773116609735,0.01785152,69787.0,69772.0,0.0002]
[1773116609964,0.01785152,69785.0,69772.0,0.0002]
[1773116610375,0.0730876,69786.0,69773.0,0.01883874]
[1773116610551,0.0730876,69786.0,69773.0,0.22587415]
[1773116610785,0.09089177,69786.0,69773.0,0.00011363]
[1773116610991,0.01775051,69785.0,69773.0,0.00011363]
[1773116611146,0.2159833,69785.0,69773.0,0.00011363]
[1773116611365,0.01775051,69784.0,69773.0,0.00011363]
[1773116611980,0.07165068,69783.0,69773.0,0.00011363]
[1773116612772,0.03,69782.0,69773.0,0.00011363]
[1773116614283,0.03,69780.0,69773.0,0.00011363]
[1773116614485,0.03144,69780.0,69773.0,0.00011363]
[1773116615401,0.03144,69780.0,69774.0,0.01872511]
[1773116615783,0.03144,69780.0,69773.0,0.00011363]
[1773116616872,0.03,69778.0,69773.0,0.00011363]
[1773116617088,0.03,69776.0,69765.0,0.0002]
[1773116617259,0.03011378,69776.0,69765.0,0.0002]
[1773116618187,0.00011378,69776.0,69766.0,0.19997937]
[1773116618387,0.00011378,69776.0,69768.0,0.01872511]
[1773116618950,0.03011378,69776.0,69768.0,0.01872511]
[1773116621051,0.03,69774.0,69768.0,0.01872511]
[1773116622525,0.0716589,69775.0,69751.0,0.17152655]
[1773116622526,0.0471725,69770.0,69751.0,0.17152655]
[1773116622682,0.00144,69773.0,69735.0,0.0003446]
[1773116622683,0.03,69758.0,69735.0,0.0003446]
[1773116622884,0.03,69752.0,69736.0,0.01911833]
[1773116623155,0.03,69752.0,69737.0,0.07189778]
[1773116623156,0.03,69748.0,69737.0,0.07189778]
[1773116623381,0.03,69748.0,69737.0,0.0002]
[1773116623787,0.07312373,69751.0,69738.0,0.01891833]
[1773116623788,0.00144,69751.0,69738.0,0.01891833]
[1773116623960,0.00144,69751.0,69741.0,0.19997937]
[1773116624137,0.03,69750.0,69742.0,0.01891833]
[1773116624338,0.03,69750.0,69741.0,0.00144]
[1773116625320,0.10168547,69750.0,69741.0,0.09205177]
[1773116627001,0.10168547,69750.0,69741.0,0.09225177]
[1773116627342,0.10168547,69750.0,69741.0,0.09081177]
[1773116628336,0.07168272,69752.0,69741.0,0.07189344]
[1773116628511,0.07312264,69752.0,69743.0,0.2188977]
[1773116628713,0.07312264,69752.0,69743.0,0.19997937]
[1773116628914,0.07312264,69752.0,69744.0,0.01891833]
[1773116632638,0.07167476,69760.0,69744.0,0.01891833]
[1773116632639,0.07166379,69771.0,69747.0,0.02035941]
[1773116632813,0.00144,69770.0,69751.0,0.02035941]
[1773116633009,0.07166379,69771.0,69754.0,0.21468791]
[1773116633010,0.00144,69769.0,69754.0,0.21468791]
[1773116633223,0.00144,69769.0,69757.0,0.02035941]
[1773116633436,0.00144,69769.0,69745.0,0.07168972]
[1773116633437,0.00144,69769.0,69759.0,0.02035941]
[1773116633626,0.00144,69769.0,69761.0,0.23504732]
[1773116634028,0.03,69770.0,69761.0,0.23504732]
[1773116634222,0.00144,69769.0,69761.0,0.23504732]
[1773116634674,0.03,69768.0,69761.0,0.23504732]
[1773116635098,0.03,69768.0,69762.0,0.02035941]
[1773116635303,0.07165887,69776.0,69762.0,0.02035941]
[1773116635503,0.00144,69774.0,69765.0,0.21468791]
[1773116635796,0.03144,69774.0,69767.0,0.02035941]
[1773116636661,0.00144,69774.0,69768.0,0.02035941]
[1773116637174,0.00144,69775.0,69768.0,0.02035941]
[1773116637544,0.07309759,69777.0,69768.0,0.02035941]
[1773116637749,0.07309759,69777.0,69770.0,0.02035941]
[1773116637945,0.07309759,69777.0,69771.0,0.02035941]
[1773116638354,0.07165154,69783.0,69771.0,0.02035941]
[1773116638554,0.00022001,69784.0,69774.0,0.07165993]
[1773116638884,0.00144,69783.0,69776.0,0.02035941]
[1773116639523,0.10165107,69783.0,69774.0,0.07165993]
[1773116639730,0.03,69783.0,69774.0,0.07165993]
[1773116640333,0.1016512,69783.0,69774.0,0.07165993]
[1773116640665,0.03,69782.0,69774.0,0.07165993]
[1773116641408,0.03,69782.0,69767.0,0.0716667]
[1773116641606,0.03,69776.0,69765.0,0.07166874]
[1773116641757,0.00144,69775.0,69765.0,0.07166874]
[1773116642154,0.00022001,69783.0,69768.0,0.21468791]
[1773116642394,0.00144,69782.0,69772.0,0.21468791]
[1773116642594,0.00022001,69783.0,69774.0,0.07165993]
[1773116642806,0.00144,69782.0,69775.0,0.21468791]
[1773116643046,0.00144,69782.0,69776.0,0.02035941]
[1773116643240,0.00144,69782.0,69774.0,0.07165993]
[1773116643684,0.00144,69782.0,69773.0,0.07165993]
[1773116644658,0.00144,69782.0,69773.0,0.09201934]
[1773116645065,0.00144,69782.0,69773.0,0.07165993]
[1773116645295,0.00144,69782.0,69774.0,0.02035941]
[1773116646478,0.03,69781.0,69774.0,0.02035941]
[1773116646680,0.03,69781.0,69767.0,0.09202653]
[1773116647117,0.03,69779.0,69767.0,0.09202653]
[1773116648251,0.03,69779.0,69767.0,0.07166712]
[1773116648453,0.03,69779.0,69768.0,0.02035941]
[1773116649301,0.10165492,69779.0,69768.0,0.09202447]
[1773116650769,0.10187493,69779.0,69768.0,0.09202447]
[1773116651709,0.03,69778.0,69768.0,0.09202447]
[1773116651846,0.03,69778.0,69769.0,0.02033556]
[1773116652052,0.03,69778.0,69771.0,0.02033556]
[1773116652721,0.03,69777.0,69771.0,0.02033556]
[1773116653578,0.07165378,69780.0,69772.0,0.07166198]
[1773116653773,0.07165378,69780.0,69773.0,0.02033556]
[1773116653774,0.03,69779.0,69773.0,0.02033556]
[1773116655448,0.07165275,69781.0,69773.0,0.02033556]
[1773116655630,0.07309183,69782.0,69774.0,0.02033556]
[1773116656514,0.03,69781.0,69774.0,0.02033556]
[1773116658754,0.03,69782.0,69774.0,0.02033556]
[1773116659081,0.03,69782.0,69776.0,0.02033556]
[1773116659374,0.03022001,69782.0,69776.0,0.02033556]
[1773116659673,0.10187172,69782.0,69776.0,0.02033556]
[1773116660328,0.03,69780.0,69763.0,0.07167122]
[1773116660444,0.03,69776.0,69763.0,0.07167122]
[1773116660644,0.07187172,69782.0,69763.0,0.07167122]
[1773116660645,0.03,69774.0,69763.0,0.07167122]
[1773116664140,0.03,69774.0,69764.0,0.00144]
[1773116664495,0.03,69773.0,69764.0,0.00144]
[1773116664894,0.03,69773.0,69763.0,0.09200678]
[1773116664895,0.03,69773.0,69763.0,0.07167122]
[1773116665520,0.03,69774.0,69763.0,0.07167122]
[1773116665918,0.03,69772.0,69763.0,0.07167122]
[1773116666957,0.03,69771.0,69763.0,0.07167122]
[1773116668084,0.03,69770.0,69762.0,0.00181969]
[1773116668257,0.03,69766.0,69759.0,0.0002]
[1773116668468,0.03008157,69766.0,69759.0,0.0002]
[1773116670213,0.03,69764.0,69759.0,0.0002]
[1773116670363,0.04677504,69764.0,69759.0,0.0002]
[1773116670567,0.03,69762.0,69759.0,0.0002]
[1773116671575,0.03,69764.0,69759.0,0.0002]
[1773116672373,0.03,69762.0,69759.0,0.0002]
[1773116672623,0.03,69762.0,69752.0,0.0002]
[1773116672776,0.03144,69762.0,69752.0,0.0002]
[1773116673350,0.03144,69762.0,69747.0,0.21195195]
[1773116673351,0.03,69760.0,69742.0,0.07197695]
[1773116673468,0.03,69756.0,69744.0,0.07333045]
[1773116673877,0.03144,69756.0,69744.0,0.09366601]
[1773116674640,0.03,69754.0,69744.0,0.09366601]
[1773116675647,0.10672728,69754.0,69743.0,0.0002]
[1773116675789,0.03,69754.0,69743.0,0.0002]
[1773116676434,0.00144,69756.0,69746.0,0.02033556]
[1773116676637,0.00144,69756.0,69748.0,0.02033556]
[1773116676843,0.00144,69756.0,69748.0,0.09202216]
[1773116677224,0.00144,69756.0,69748.0,0.02033556]
[1773116677865,0.03144,69757.0,69748.0,0.02033556]
[1773116679328,0.10167842,69756.0,69748.0,0.02033556]
[1773116681164,0.03,69755.0,69748.0,0.02033556]
[1773116681399,0.03,69755.0,69747.0,0.01854693]
[1773116681611,0.07166917,69765.0,69749.0,0.21194922]
[1773116681929,0.07174993,69766.0,69746.0,0.07168811]
[1773116681930,0.07174983,69766.0,69752.0,0.01854693]
[1773116682146,0.07174983,69766.0,69755.0,0.21194922]
[1773116682301,0.03,69765.0,69757.0,0.01854693]
[1773116682904,0.03,69765.0,69746.0,0.07168811]
[1773116683131,0.03,69759.0,69749.0,0.21194922]
[1773116683329,0.03,69757.0,69750.0,0.00144]
[1773116683529,0.03,69757.0,69749.0,0.00144]
[1773116684050,0.03,69757.0,69748.0,0.00144]
[1773116684051,0.00022001,69756.0,69748.0,0.00144]
[1773116684342,0.00022001,69756.0,69749.0,0.01854693]
[1773116684548,0.03,69759.0,69752.0,0.21194922]
[1773116684709,0.03,69759.0,69753.0,0.01854693]
[1773116687111,0.03,69758.0,69753.0,0.01854693]
[1773116687540,0.03,69758.0,69750.0,0.07168431]
[1773116687760,0.07167447,69760.0,69743.0,0.0002]
[1773116687761,0.03,69756.0,69743.0,0.0002]
[1773116687991,0.19861926,69757.0,69743.0,0.0002]
[1773116687992,0.10677878,69754.0,69743.0,0.0002]
[1773116688141,0.03,69754.0,69743.0,0.0002]
[1773116688342,0.03,69754.0,69744.0,0.01874693]
[1773116688987,0.03,69756.0,69744.0,0.01874693]
[1773116689533,0.00166001,69782.0,69750.0,0.00023]
[1773116689712,0.00144,69781.0,69762.0,0.01854693]
[1773116689933,0.00144,69780.0,69763.0,0.01998693]
[1773116690432,0.03,69781.0,69763.0,0.01998693]
[1773116690602,0.03,69779.0,69763.0,0.01998693]
[1773116690802,0.03,69777.0,69763.0,0.01998693]
[1773116691832,0.03,69776.0,69764.0,0.0716702]
[1773116692174,0.00022001,69770.0,69764.0,0.0716702]
[1773116692611,0.00022001,69770.0,69764.0,0.09021713]
[1773116694646,0.00032841,69770.0,69764.0,0.09021713]
[1773116701328,0.00032841,69770.0,69764.0,0.09132767]
[1773116702810,0.00032841,69770.0,69764.0,0.0716702]
[1773116705724,0.00032841,69770.0,69763.0,0.07167066]
[1773116706120,0.00032841,69770.0,69762.0,0.0716702]
[1773116706374,0.00032841,69770.0,69762.0,0.09132767]
[1773116711654,0.00032841,69770.0,69762.0,0.09152767]
[1773116713689,0.03032841,69770.0,69762.0,0.09152767]
[1773116714663,0.03,69773.0,69763.0,0.01969312]
[1773116716675,0.10166101,69773.0,69764.0,0.0716702]
[1773116716874,0.03,69773.0,69764.0,0.0716702]
[1773116718792,0.03,69773.0,69763.0,0.0716702]
[1773116720053,0.10166118,69773.0,69763.0,0.0716702]
[1773116721142,0.10166118,69773.0,69763.0,0.0718702]
[1773116721316,0.03,69772.0,69763.0,0.0718702]
[1773116722374,0.03,69771.0,69763.0,0.0718702]
[1773116722768,0.03,69771.0,69763.0,0.09156332]
[1773116723400,0.03022001,69773.0,69763.0,0.09156332]
[1773116723740,0.03022001,69773.0,69763.0,0.0718702]
[1773116723921,0.03022001,69773.0,69763.0,0.0618702]
[1773116727310,0.03,69772.0,69763.0,0.0002]
[1773116728351,0.03,69771.0,69763.0,0.0002]
[1773116729632,0.03022001,69773.0,69763.0,0.0002]
[1773116735889,0.03,69772.0,69763.0,0.0002]
[1773116736938,0.00022001,69773.0,69763.0,0.0002]
[1773116737734,0.00022001,69789.0,69765.0,0.07677878]
[1773116737952,0.00023,69800.0,69781.0,0.01969312]
[1773116738148,0.00023,69800.0,69791.0,0.01969312]
[1773116738149,0.00173523,69800.0,69791.0,0.01969312]
[1773116738324,0.00029523,69800.0,69791.0,0.01969312]
[1773116738535,0.07192854,69800.0,69791.0,0.01969312]
[1773116738696,0.00029523,69800.0,69791.0,0.01969312]
[1773116738901,0.03029523,69800.0,69793.0,0.01969312]
[1773116739103,0.10192853,69800.0,69789.0,0.07164434]
[1773116739383,0.10192853,69800.0,69783.0,0.20010657]
[1773116739384,0.03,69798.0,69771.0,0.20010657]
[1773116739527,0.84115633,69800.0,69773.0,0.07166095]
[1773116739528,0.03,69787.0,69773.0,0.07166095]
[1773116739725,0.07677878,69790.0,69772.0,0.07166095]
[1773116739726,0.03,69783.0,69772.0,0.07166095]
[1773116739930,0.20147241,69784.0,69772.0,0.07166095]
[1773116739931,0.03,69781.0,69772.0,0.07166095]
[1773116740156,0.03,69781.0,69772.0,0.07196345]
[1773116740649,0.03,69781.0,69771.0,0.07166198]
[1773116740650,0.03,69781.0,69771.0,0.06654041]
[1773116740807,0.03,69781.0,69772.0,0.07166095]
[1773116741008,0.03,69781.0,69770.0,0.07166198]
[1773116742837,0.03,69781.0,69769.0,0.00144]
[1773116743053,0.03,69781.0,69769.0,0.07166506]
[1773116743255,0.03,69781.0,69769.0,0.07310506]
[1773116743456,0.03,69781.0,69769.0,0.09215334]
[1773116744062,0.10165304,69781.0,69769.0,0.09071334]
[1773116744283,0.03,69779.0,69769.0,0.07166506]
[1773116744502,0.03,69777.0,69769.0,0.07166506]
[1773116744884,0.07165029,69784.0,69772.0,0.01904828]
[1773116745084,0.07165029,69784.0,69773.0,0.07166095]
[1773116745453,0.03,69783.0,69773.0,0.07204052]
[1773116747625,0.03,69781.0,69773.0,0.07204052]
[1773116750746,0.03,69781.0,69774.0,0.01904828]
[1773116750950,0.03,69793.0,69775.0,0.20154657]
[1773116751151,0.03,69793.0,69782.0,0.20010657]
[1773116751355,0.00144,69798.0,69785.0,0.01904828]
[1773116751537,0.00144,69798.0,69789.0,0.01890632]
[1773116751723,0.00023,69800.0,69789.0,0.01890632]
[1773116751923,0.03,69799.0,69789.0,0.01890632]
[1773116752334,0.03,69799.0,69783.0,0.00144]
[1773116752569,0.03,69799.0,69787.0,0.19921537]
[1773116752769,0.03,69799.0,69788.0,0.01890632]
[1773116752981,0.03,69799.0,69789.0,0.07164452]
[1773116753148,0.03,69798.0,69789.0,0.09055084]
[1773116754342,0.03022001,69797.0,69789.0,0.09055084]
[1773116755275,0.03,69796.0,69789.0,0.09055084]
[1773116755490,0.03,69796.0,69789.0,0.07164452]
[1773116755671,0.03,69796.0,69790.0,0.01890632]
[1773116755894,0.00167,69800.0,69791.0,0.01890632]
[1773116756424,0.10330331,69800.0,69789.0,0.07164452]
[1773116756624,0.03023,69800.0,69790.0,0.19921537]
[1773116756827,0.07163246,69801.0,69791.0,0.01890632]
[1773116757035,0.07163246,69801.0,69792.0,0.19921537]
[1773116757260,0.07163082,69803.0,69793.0,0.09054585]
[1773116757447,0.03,69802.0,69793.0,0.09054585]
[1773116758202,0.03,69802.0,69793.0,0.07163953]
[1773116759422,0.03,69800.0,69791.0,0.21812169]
[1773116760219,0.03,69800.0,69791.0,0.01890632]
[1773116761160,0.03,69799.0,69791.0,0.01890632]
[1773116761362,0.03,69799.0,69792.0,0.07164144]
[1773116761669,0.03,69799.0,69793.0,0.01890632]
[1773116762374,0.00022001,69800.0,69793.0,0.01890632]
[1773116762976,0.00022001,69800.0,69792.0,0.07164144]
[1773116762977,0.00166001,69807.0,69795.0,0.01890632]
[1773116763203,0.00166001,69807.0,69796.0,0.01890632]
[1773116763676,0.00166001,69807.0,69797.0,0.07163631]
[1773116763878,0.04769526,69810.0,69801.0,0.01890632]
[1773116763879,0.03144,69810.0,69801.0,0.01890632]
[1773116764025,0.03,69810.0,69801.0,0.18982692]
[1773116764231,0.03,69810.0,69797.0,0.07163631]
[1773116764232,0.03562,69816.0,69803.0,0.01890632]
[1773116764537,0.03562,69816.0,69804.0,0.01890632]
[1773116764734,0.0001983,69817.0,69806.0,0.01890632]
[1773116765501,0.00144,69819.0,69807.0,0.07162605]
[1773116765715,0.00144,69819.0,69810.0,0.01890632]
[1773116765851,0.00144,69819.0,69811.0,0.01890632]
[1773116766055,0.00144,69823.0,69812.0,0.01890632]
[1773116766258,0.03144,69823.0,69812.0,0.01890632]
[1773116767447,0.03,69822.0,69814.0,0.07161887]
[1773116767661,0.03,69822.0,69815.0,0.01890632]
[1773116768271,0.0302331,69822.0,69815.0,0.01890632]
[1773116768479,0.03,69821.0,69815.0,0.01890632]
[1773116768678,0.00022001,69816.0,69815.0,0.01890632]
[1773116768883,0.07175035,69833.0,69817.0,0.01890632]
[1773116769341,0.07175035,69833.0,69815.0,0.00144]
[1773116769342,0.00015,69833.0,69818.0,0.18982692]
[1773116769546,0.01730004,69830.0,69820.0,0.07161271]
[1773116769748,0.03,69823.0,69815.0,0.0730576]
[1773116770047,0.03,69823.0,69814.0,0.07161784]
[1773116770048,0.03,69821.0,69814.0,0.07161857]
[1773116770248,0.03,69821.0,69810.0,0.07162214]
[1773116770249,0.03,69817.0,69810.0,0.07162214]
[1773116770624,0.03,69817.0,69811.0,0.01763533]
[1773116771302,0.00144,69824.0,69811.0,0.01763533]
[1773116771502,0.10160765,69825.0,69812.0,0.07162092]
[1773116771702,0.00144,69824.0,69812.0,0.07162092]
[1773116771930,0.00144,69824.0,69813.0,0.01763533]
[1773116772660,0.00144,69824.0,69814.0,0.18982692]
[1773116772865,0.00144,69824.0,69815.0,0.01763533]
[1773116773042,0.10160582,69827.0,69815.0,0.01907533]
[1773116773382,0.03,69827.0,69815.0,0.01907533]
[1773116773763,0.10160563,69827.0,69816.0,0.07161682]
[1773116773947,0.03,69826.0,69816.0,0.07161682]
[1773116774989,0.03,69825.0,69816.0,0.07161682]
[1773116775329,0.00022001,69830.0,69820.0,0.01763533]
[1773116775502,0.00022001,69830.0,69819.0,0.18982692]
[1773116775503,0.00022001,69830.0,69821.0,0.01907533]
[1773116775937,0.00022001,69830.0,69822.0,0.07161066]
[1773116776272,0.00022001,69830.0,69823.0,0.01763533]
[1773116776472,0.03,69835.0,69824.0,0.18982692]
[1773116776683,0.03,69835.0,69825.0,0.01763533]
[1773116777100,0.07159187,69841.0,69826.0,0.18982692]
[1773116777312,0.00144,69839.0,69827.0,0.01907533]
[1773116777623,0.00022001,69838.0,69827.0,0.01907533]
[1773116778023,0.00022001,69838.0,69829.0,0.01763533]
[1773116778644,0.00022001,69838.0,69828.0,0.07160451]
[1773116778645,0.03,69833.0,69828.0,0.07160451]
[1773116778850,0.03,69833.0,69821.0,0.07161099]
[1773116778851,0.03,69831.0,69821.0,0.07305113]
[1773116779058,0.03,69829.0,69821.0,0.07305113]
[1773116780939,0.10160353,69829.0,69821.0,0.07161113]
[1773116781137,0.10160353,69829.0,69799.0,0.34384378]
[1773116781138,0.03,69823.0,69817.0,0.00144]
[1773116781318,0.03,69823.0,69816.0,0.00144]
[1773116782199,0.03,69827.0,69816.0,0.00144]
[1773116782425,0.03,69825.0,69817.0,0.07161579]
[1773116782741,0.0767143,69840.0,69817.0,0.07161579]
[1773116782742,0.07325447,69838.0,69822.0,0.01763533]
[1773116782918,0.07325447,69838.0,69821.0,0.18982692]
[1773116783132,0.01730004,69835.0,69820.0,0.00144]
[1773116783371,0.01730004,69833.0,69820.0,0.00144]
[1773116783575,0.20083799,69834.0,69820.0,0.00144]
[1773116783576,0.03,69832.0,69820.0,0.00144]
[1773116783730,0.03,69832.0,69820.0,0.01763533]
[1773116783902,0.00022001,69829.0,69821.0,0.00144]
[1773116784306,0.00022001,69829.0,69822.0,0.07161066]
[1773116786539,0.00022001,69829.0,69823.0,0.01763533]
[1773116787829,0.03,69832.0,69823.0,0.01763533]
[1773116788117,0.07160019,69833.0,69825.0,0.01763533]
[1773116788468,0.07159796,69835.0,69826.0,0.07160656]
[1773116788714,0.03,69834.0,69826.0,0.08924189]
[1773116789374,0.00022001,69838.0,69826.0,0.07160656]
[1773116789598,0.00022001,69838.0,69828.0,0.01763533]
[1773116789800,0.00022001,69838.0,69830.0,0.01763533]
[1773116789999,0.00022001,69838.0,69830.0,0.01907533]
[1773116790526,0.00022001,69838.0,69832.0,0.07160041]
[1773116790734,0.03011379,69839.0,69832.0,0.07160041]
[1773116790961,1e-08,69851.0,69836.0,0.18982692]
[1773116791105,1e-08,69851.0,69832.0,0.07160041]
[1773116791106,1e-08,69851.0,69840.0,0.09434963]
[1773116791442,1e-08,69851.0,69837.0,0.00144]
[1773116791443,0.01730004,69848.0,69837.0,0.00144]
[1773116791654,0.20083799,69846.0,69836.0,0.00144]
[1773116791796,0.04730004,69845.0,69836.0,0.00144]
[1773116792209,0.03,69845.0,69836.0,0.00144]
[1773116792645,0.03,69845.0,69837.0,0.07159528]
[1773116792821,0.03,69844.0,69837.0,0.07159528]
[1773116793246,0.00011373,69848.0,69837.0,0.07159528]
[1773116793789,0.00011373,69848.0,69837.0,0.08923061]
[1773116794085,0.00022001,69846.0,69838.0,0.01763533]
[1773116794820,0.00022001,69846.0,69839.0,0.07159323]
[1773116795433,0.03011373,69848.0,69840.0,0.01763533]
[1773116795623,0.07158093,69853.0,69840.0,0.01763533]
[1773116795829,0.07196008,69853.0,69840.0,0.01763533]
[1773116796038,0.03,69852.0,69841.0,0.01763533]
[1773116796256,0.03,69852.0,69842.0,0.00144]
[1773116796458,0.10157991,69852.0,69842.0,0.00144]
[1773116797058,0.03,69851.0,69843.0,0.07158913]
[1773116797970,0.03,69850.0,69843.0,0.07158913]
[1773116798172,0.01730004,69856.0,69843.0,0.07158913]
[1773116798173,0.08887608,69856.0,69843.0,0.07158913]
[1773116798374,0.08887608,69856.0,69843.0,0.07196828]
[1773116798578,0.08887608,69856.0,69843.0,0.08960361]
[1773116799190,0.03,69855.0,69843.0,0.08960361]
[1773116801200,0.03,69853.0,69843.0,0.07196828]
[1773116802288,0.03,69854.0,69843.0,0.07196828]
[1773116803610,0.03,69853.0,69843.0,0.07196828]
[1773116805035,0.03,69852.0,69843.0,0.07196828]
[1773116806298,0.03,69851.0,69843.0,0.07196828]
[1773116806859,0.04467964,69851.0,69844.0,0.00144]
[1773116807237,0.03,69847.0,69843.0,0.00144]
[1773116807405,0.04467964,69845.0,69843.0,0.00144]
[1773116807612,0.03,69845.0,69843.0,0.00144]
[1773116807973,0.03,69845.0,69838.0,0.07159426]
[1773116808175,0.03,69845.0,69839.0,0.00144]
[1773116808365,0.03,69848.0,69840.0,0.07159221]
[1773116808566,0.03,69848.0,69840.0,0.07303221]
[1773116809494,0.03,69843.0,69835.0,0.00144]
[1773116809742,0.04467964,69841.0,69836.0,0.00144]
[1773116809937,0.04467964,69841.0,69834.0,0.07159834]
[1773116809938,0.04467964,69841.0,69834.0,0.07303834]
[1773116810153,0.04467964,69841.0,69838.0,0.0002]
[1773116810711,0.10159124,69841.0,69831.0,0.07160106]
[1773116810823,0.03,69837.0,69831.0,0.07180106]
[1773116812244,0.07159124,69841.0,69828.0,0.17117167]
[1773116812245,0.03,69834.0,69828.0,0.17117167]
[1773116812475,0.04467964,69832.0,69825.0,0.07183754]
[1773116812969,0.07159735,69835.0,69825.0,0.07183754]
[1773116813177,0.07159592,69837.0,69825.0,0.07183754]
[1773116813583,0.03,69836.0,69825.0,0.07183754]
[1773116813808,0.03,69832.0,69825.0,0.00023]
[1773116814008,0.03,69832.0,69822.0,0.07161011]
[1773116814009,0.03,69828.0,69823.0,0.00144]
[1773116814337,0.03,69828.0,69816.0,0.2197765]
[1773116814338,0.03,69820.0,69805.0,0.1957106]
[1773116814543,0.03,69816.0,69806.0,0.07162708]
[1773116814722,0.03,69816.0,69807.0,0.1957106]
[1773116815214,0.03,69816.0,69808.0,0.00144]
[1773116815583,0.03,69815.0,69808.0,0.00144]
[1773116815798,0.03,69815.0,69808.0,0.0015825]
[1773116816584,0.03,69814.0,69809.0,0.071624]